fUSD/lending_fUSD_20250105
["ID","MTS","AMOUNT","RATE_DAILY","PERIOD"]
[347762538,1736095854357,-2047.69,9.315e-05,2]
[347762539,1736095854366,-950.22,9.315e-05,2]
[347762540,1736095854376,-841.68,9.315e-05,2]
[347762541,1736095854386,-1957.92,9.315e-05,2]
[347762542,1736095854398,-1161.3,9.315e-05,2]
[347762543,1736095854408,-500.0,9.315e-05,2]
[347762544,1736095854418,-150.0,9.368e-05,2]
[347762545,1736095854428,-189.42,9.394e-05,2]
[347762546,1736095854438,-150.0,9.413e-05,2]
[347762547,1736095854448,-150.0,9.485e-05,2]
[347762548,1736095854459,-150.0,9.521e-05,2]
[347762549,1736095854470,-500.0,9.585e-05,2]
[347762550,1736095854480,-1856.37,9.585e-05,2]
[347762551,1736095854491,-500.0,9.585e-05,2]
[347762552,1736095854500,-1176.54,9.585e-05,2]
[347762553,1736095854511,-530.44,9.585e-05,2]
[347762554,1736095854521,-2814.45,9.585e-05,2]
[347762555,1736095854531,-500.0,9.585e-05,2]
[347762556,1736095854541,-769.38,9.585e-05,2]
[347762557,1736095854550,-500.0,9.585e-05,2]
[347762558,1736095854560,-675.21,9.585e-05,2]
[347762559,1736095854571,-1561.87,9.585e-05,2]
[347762560,1736095854580,-500.0,9.585e-05,2]
[347762561,1736095854590,-1751.39,9.585e-05,2]
[347762562,1736095854600,-576.37,9.585e-05,2]
[347762563,1736095854611,-711.82,9.586e-05,2]
[347762564,1736095854621,-777.32,9.586e-05,2]
[347762565,1736095854631,-584.27,9.586e-05,2]
[347762566,1736095854641,-1362.64,9.586e-05,2]
[347762567,1736095854651,-933.23,9.586e-05,2]
[347762568,1736095854661,-798.0,9.586e-05,2]
[347762569,1736095854673,-500.0,9.586e-05,2]
[347762570,1736095854683,-500.0,9.586e-05,2]
[347762571,1736095854694,-1406.53,9.586e-05,2]
[347762572,1736095854703,-500.0,9.586e-05,2]
[347762573,1736095854713,-500.0,9.586e-05,2]
[347762574,1736095854723,-500.0,9.586e-05,2]
[347762575,1736095854734,-2482.55,9.586e-05,2]
[347762576,1736095854744,-500.0,9.586e-05,2]
[347762577,1736095854753,-2577.14,9.586e-05,2]
[347762578,1736095854764,-992.6,9.586e-05,2]
[347762579,1736095854774,-500.0,9.586e-05,2]
[347762580,1736095854784,-1643.78,9.586e-05,2]
[347762581,1736095854794,-500.0,9.586e-05,2]
[347762582,1736095854805,-4470.01,9.586e-05,2]
[347762583,1736095854817,-1552.7,9.586e-05,2]
[347762584,1736095854827,-500.0,9.586e-05,2]
[347762585,1736095854836,-645.32,9.586e-05,2]
[347762586,1736095854847,-500.0,9.586e-05,2]
[347762587,1736095854856,-800.4,9.586e-05,2]
[347762588,1736095854867,-1519.25,9.586e-05,2]
[347762589,1736095854877,-501.13,9.586e-05,2]
[347762590,1736095854887,-392.7866237,9.586e-05,2]
[347762591,1736095854897,-500.0,9.586e-05,2]
[347762592,1736095854907,-500.0,9.586e-05,2]
[347762593,1736095854916,-1316.83,9.586e-05,2]
[347762594,1736095854926,-1065.02017,9.586e-05,2]
[347762595,1736095854936,-500.0,9.586e-05,2]
[347762596,1736095854946,-500.0,9.586e-05,2]
[347762597,1736095854956,-2870.07,9.586e-05,2]
[347762598,1736095854967,-2582.52,9.586e-05,2]
[347762599,1736095854978,-500.0,9.586e-05,2]
[347762600,1736095854987,-885.235852,9.586e-05,2]
[347762601,1736095854997,-1296.0,9.586e-05,2]
[347762602,1736095855008,-500.0,9.586e-05,2]
[347762603,1736095855019,-1263.86,9.586e-05,2]
[347762604,1736095855028,-559.66,9.586e-05,2]
[347762605,1736095855038,-1451.88,9.586e-05,2]
[347762606,1736095855047,-500.0,9.586e-05,2]
[347762607,1736095855056,-500.0,9.586e-05,2]
[347762608,1736095855065,-662.17,9.586e-05,2]
[347762609,1736095855075,-500.0,9.586e-05,2]
[347762610,1736095855084,-500.0,9.586e-05,2]
[347762611,1736095855097,-1117.81,9.586e-05,2]
[347762612,1736095855114,-564.52,9.586e-05,2]
[347762613,1736095855130,-500.0,9.586e-05,2]
[347762614,1736095855145,-500.0,9.586e-05,2]
[347762615,1736095855158,-500.0,9.586e-05,2]
[347762616,1736095855174,-500.0,9.586e-05,2]
[347762617,1736095855187,-883.45,9.586e-05,2]
[347762618,1736095855201,-500.0,9.586e-05,2]
[347762619,1736095855215,-500.0,9.586e-05,2]
[347762620,1736095855231,-500.0,9.586e-05,2]
[347762621,1736095855244,-500.0,9.586e-05,2]
[347762622,1736095855258,-2939.35,9.586e-05,2]
[347762623,1736095855270,-951.44,9.586e-05,2]
[347762624,1736095855284,-500.0,9.586e-05,2]
[347762625,1736095855299,-500.0,9.586e-05,2]
[347762626,1736095855313,-500.0,9.586e-05,2]
[347762627,1736095855327,-3218.91,9.587e-05,2]
[347762628,1736095855343,-1847.93,9.587e-05,2]
[347762629,1736095855358,-3406.35,9.587e-05,2]
[347762630,1736095855372,-548.05,9.587e-05,2]
[347762631,1736095855389,-3997.2,9.587e-05,2]
[347762632,1736095855403,-500.0,9.587e-05,2]
[347762633,1736095855418,-697.66,9.587e-05,2]
[347762634,1736095855433,-500.0,9.588e-05,2]
[347762635,1736095855446,-500.0,9.588e-05,2]
[347762636,1736095855463,-500.0,9.588e-05,2]
[347762637,1736095855479,-542.45,9.588e-05,2]
[347762638,1736095855493,-500.0,9.588e-05,2]
[347762639,1736095855506,-500.0,9.588e-05,2]
[347762640,1736095855518,-509.74,9.588e-05,2]
[347762641,1736095855531,-500.0,9.588e-05,2]
[347762642,1736095855543,-500.0,9.588e-05,2]
[347762643,1736095855560,-500.0,9.588e-05,2]
[347762644,1736095855573,-591.3,9.588e-05,2]
[347762645,1736095855584,-500.0,9.588e-05,2]
[347762646,1736095855595,-500.0,9.588e-05,2]
[347762647,1736095855609,-500.0,9.588e-05,2]
[347762648,1736095855625,-581.38,9.588e-05,2]
[347762649,1736095855640,-500.0,9.588e-05,2]
[347762650,1736095855651,-500.0,9.588e-05,2]
[347762651,1736095855663,-500.0,9.588e-05,2]
[347762652,1736095855677,-500.0,9.588e-05,2]
[347762653,1736095855689,-500.0,9.588e-05,2]
[347762654,1736095855701,-500.0,9.588e-05,2]
[347762655,1736095855713,-885.2,9.588e-05,2]
[347762656,1736095855725,-571.68,9.588e-05,2]
[347762657,1736095855737,-500.0,9.588e-05,2]
[347762658,1736095855749,-500.0,9.588e-05,2]
[347762659,1736095855762,-565.85,9.588e-05,2]
[347762660,1736095855774,-584.68,9.588e-05,2]
[347762661,1736095855786,-500.0,9.588e-05,2]
[347762662,1736095855798,-500.0,9.588e-05,2]
[347762663,1736095855814,-500.0,9.588e-05,2]
[347762664,1736095855827,-566.83,9.588e-05,2]
[347762665,1736095855840,-500.0,9.588e-05,2]
[347762666,1736095855852,-500.0,9.588e-05,2]
[347762667,1736095855865,-453.57731072,9.588e-05,2]
[347762668,1736095855876,-500.0,9.588e-05,2]
[347762669,1736095855891,-500.0,9.588e-05,2]
[347762670,1736095855903,-812.34,9.588e-05,2]
[347762671,1736095855915,-500.0,9.588e-05,2]
[347762672,1736095855927,-1847.31,9.588e-05,2]
[347762673,1736095855940,-516.84,9.588e-05,2]
[347762674,1736095855952,-500.0,9.588e-05,2]
[347762675,1736095855964,-716.19,9.588e-05,2]
[347762676,1736095855976,-500.0,9.588e-05,2]
[347762677,1736095855988,-500.0,9.588e-05,2]
[347762678,1736095856001,-671.8,9.588e-05,2]
[347762679,1736095856015,-500.0,9.588e-05,2]
[347762680,1736095856028,-500.0,9.588e-05,2]
[347762681,1736095856040,-731.37,9.588e-05,2]
[347762682,1736095856053,-689.75,9.588e-05,2]
[347762683,1736095856065,-500.0,9.588e-05,2]
[347762684,1736095856077,-500.0,9.588e-05,2]
[347762685,1736095856089,-500.0,9.588e-05,2]
[347762686,1736095856102,-500.0,9.588e-05,2]
[347762687,1736095856115,-500.0,9.588e-05,2]
[347762688,1736095856127,-733.8,9.588e-05,2]
[347762689,1736095856140,-530.73,9.588e-05,2]
[347762690,1736095856153,-570.3,9.588e-05,2]
[347762691,1736095856165,-555.81,9.588e-05,2]
[347762692,1736095856177,-500.0,9.588e-05,2]
[347762693,1736095856188,-687.33,9.588e-05,2]
[347762694,1736095856200,-940.82,9.588e-05,2]
[347762695,1736095856213,-551.91,9.588e-05,2]
[347762696,1736095856226,-635.28,9.588e-05,2]
[347762697,1736095856238,-500.0,9.588e-05,2]
[347762698,1736095856250,-1073.58,9.588e-05,2]
[347762699,1736095856263,-1082.22,9.588e-05,2]
[347762700,1736095856276,-548.37,9.588e-05,2]
[347762701,1736095856292,-500.0,9.588e-05,2]
[347762702,1736095856305,-676.35,9.588e-05,2]
[347762703,1736095856317,-1388.69,9.588e-05,2]
[347762704,1736095856330,-500.0,9.588e-05,2]
[347762705,1736095856343,-550.27,9.588e-05,2]
[347762706,1736095856355,-792.94,9.588e-05,2]
[347762707,1736095856368,-1265.21,9.588e-05,2]
[347762708,1736095856381,-1771.38,9.588e-05,2]
[347762709,1736095856395,-500.0,9.588e-05,2]
[347762710,1736095856408,-646.75,9.588e-05,2]
[347762711,1736095856422,-500.0,9.588e-05,2]
[347762712,1736095856436,-687.89,9.588e-05,2]
[347762713,1736095856450,-3830.35,9.588e-05,2]
[347762714,1736095856462,-500.0,9.588e-05,2]
[347762715,1736095856475,-583.19,9.588e-05,2]
[347762716,1736095856488,-500.0,9.588e-05,2]
[347762717,1736095856500,-950.22,9.588e-05,2]
[347762718,1736095856513,-1533.34,9.588e-05,2]
[347762719,1736095856525,-500.0,9.588e-05,2]
[347762720,1736095856538,-500.0,9.588e-05,2]
[347762721,1736095856552,-5195.87,9.588e-05,2]
[347762722,1736095856565,-2256.91,9.588e-05,2]
[347762723,1736095856579,-635.6,9.588e-05,2]
[347762724,1736095856592,-1194.12,9.589e-05,2]
[347762725,1736095856604,-500.0,9.589e-05,2]
[347762726,1736095856617,-500.0,9.589e-05,2]
[347762727,1736095856628,-500.0,9.589e-05,2]
[347762728,1736095856641,-500.0,9.589e-05,2]
[347762729,1736095856654,-515.27,9.589e-05,2]
[347762730,1736095856667,-500.0,9.589e-05,2]
[347762731,1736095856680,-500.0,9.589e-05,2]
[347762732,1736095856692,-500.0,9.589e-05,2]
[347762733,1736095856704,-500.0,9.589e-05,2]
[347762734,1736095856716,-898.06,9.589e-05,2]
[347762735,1736095856729,-500.0,9.589e-05,2]
[347762736,1736095856741,-500.0,9.589e-05,2]
[347762737,1736095856755,-263.32020261,9.589e-05,2]
[347762738,1736095856769,-872.3,9.589e-05,2]
[347762739,1736095856782,-500.0,9.589e-05,2]
[347762740,1736095856795,-500.0,9.589e-05,2]
[347762741,1736095856810,-500.0,9.589e-05,2]
[347762742,1736095856823,-500.0,9.589e-05,2]
[347762743,1736095856835,-1000.0,9.589e-05,2]
[347762744,1736095856848,-500.0,9.589e-05,2]
[347762745,1736095856861,-500.0,9.589e-05,2]
[347762746,1736095856874,-664.88,9.589e-05,2]
[347762747,1736095856887,-500.0,9.589e-05,2]
[347762748,1736095856900,-500.0,9.589e-05,2]
[347762749,1736095856912,-500.0,9.589e-05,2]
[347762750,1736095856924,-797.13,9.589e-05,2]
[347762751,1736095856936,-500.0,9.589e-05,2]
[347762752,1736095856949,-500.0,9.589e-05,2]
[347762753,1736095856962,-500.0,9.589e-05,2]
[347762754,1736095856975,-500.0,9.589e-05,2]
[347762755,1736095856988,-500.0,9.589e-05,2]
[347762756,1736095857000,-500.0,9.589e-05,2]
[347762757,1736095857013,-568.18,9.589e-05,2]
[347762758,1736095857026,-500.0,9.589e-05,2]
[347762759,1736095857040,-500.0,9.589e-05,2]
[347762760,1736095857052,-500.0,9.589e-05,2]
[347762761,1736095857064,-500.0,9.589e-05,2]
[347762762,1736095857077,-1727.67,9.589e-05,2]
[347762763,1736095857090,-779.3,9.589e-05,2]
[347762764,1736095857103,-607.64,9.589e-05,2]
[347762765,1736095857115,-500.0,9.589e-05,2]
[347762766,1736095857127,-500.0,9.589e-05,2]
[347762767,1736095857140,-500.0,9.589e-05,2]
[347762768,1736095857152,-500.0,9.589e-05,2]
[347762769,1736095857164,-500.0,9.589e-05,2]
[347762770,1736095857175,-782.01,9.589e-05,2]
[347762771,1736095857188,-500.0,9.589e-05,2]
[347762772,1736095857200,-1567.9,9.589e-05,2]
[347762773,1736095857213,-611.96,9.589e-05,2]
[347762774,1736095857225,-500.0,9.589e-05,2]
[347762775,1736095857237,-565.0,9.589e-05,2]
[347762776,1736095857249,-559.82,9.589e-05,2]
[347762777,1736095857261,-500.0,9.589e-05,2]
[347762778,1736095857275,-500.0,9.589e-05,2]
[347762779,1736095857287,-550.86,9.589e-05,2]
[347762780,1736095857300,-500.0,9.589e-05,2]
[347762781,1736095857312,-500.0,9.589e-05,2]
[347762782,1736095857324,-500.0,9.589e-05,2]
[347762783,1736095857335,-500.0,9.589e-05,2]
[347762784,1736095857347,-500.0,9.589e-05,2]
[347762785,1736095857360,-500.0,9.589e-05,2]
[347762786,1736095857372,-500.0,9.589e-05,2]
[347762787,1736095857384,-585.82,9.589e-05,2]
[347762788,1736095857396,-500.0,9.589e-05,2]
[347762789,1736095857408,-1088.08,9.589e-05,2]
[347762790,1736095857420,-500.0,9.589e-05,2]
[347762791,1736095857432,-500.0,9.589e-05,2]
[347762792,1736095857445,-500.0,9.589e-05,2]
[347762793,1736095857457,-500.0,9.589e-05,2]
[347762794,1736095857469,-1279.95,9.589e-05,2]
[347762795,1736095857480,-1226.62,9.589e-05,2]
[347762796,1736095857492,-500.0,9.589e-05,2]
[347762797,1736095857504,-500.0,9.589e-05,2]
[347762798,1736095857515,-500.0,9.589e-05,2]
[347762799,1736095857527,-643.04,9.589e-05,2]
[347762800,1736095857539,-876.2,9.589e-05,2]
[347762801,1736095857551,-500.0,9.589e-05,2]
[347762802,1736095857563,-500.0,9.589e-05,2]
[347762803,1736095857575,-500.0,9.589e-05,2]
[347762804,1736095857588,-500.0,9.589e-05,2]
[347762805,1736095857599,-500.0,9.589e-05,2]
[347762806,1736095857612,-1553.97,9.589e-05,2]
[347762807,1736095857624,-500.0,9.589e-05,2]
[347762808,1736095857636,-591.47,9.589e-05,2]
[347762809,1736095857649,-581.74,9.589e-05,2]
[347762810,1736095857661,-613.09,9.589e-05,2]
[347762811,1736095857673,-565.07,9.589e-05,2]
[347762812,1736095857684,-893.15,9.589e-05,2]
[347762813,1736095857696,-500.0,9.589e-05,2]
[347762814,1736095857708,-500.0,9.589e-05,2]
[347762815,1736095857721,-500.0,9.589e-05,2]
[347762816,1736095857733,-4529.45,9.589e-05,2]
[347762817,1736095857745,-1847.31,9.589e-05,2]
[347762818,1736095858171,-1003.38,9.589e-05,2]
[347762819,1736095858241,-951.44,9.589e-05,2]
[347762820,1736095858263,-1602.72,9.589e-05,2]
[347762821,1736095858288,-218.7,9.589e-05,2]
[347762822,1736095858298,-962.87,9.589e-05,2]
[347762823,1736095858310,-500.0,9.589e-05,2]
[347762824,1736095858319,-500.0,9.589e-05,2]
[347762825,1736095858329,-500.0,9.589e-05,2]
[347762826,1736095858339,-729.82,9.589e-05,2]
[347762827,1736095858350,-500.0,9.589e-05,2]
[347762828,1736095858360,-500.0,9.589e-05,2]
[347762829,1736095858371,-540.7,9.589e-05,2]
[347762830,1736095858380,-500.0,9.589e-05,2]
[347762831,1736095858390,-500.0,9.589e-05,2]
[347762832,1736095858400,-500.0,9.589e-05,2]
[347762833,1736095858410,-500.0,9.589e-05,2]
[347762834,1736095858421,-500.0,9.589e-05,2]
[347762835,1736095858429,-500.0,9.589e-05,2]
[347762836,1736095858436,-2757.49,9.589e-05,2]
[347762837,1736095858445,-611.9,9.589e-05,2]
[347762838,1736095858455,-500.0,9.589e-05,2]
[347762839,1736095858465,-941.3,9.589e-05,2]
[347762840,1736095858475,-500.0,9.589e-05,2]
[347762841,1736095858486,-500.0,9.589e-05,2]
[347762842,1736095858496,-500.0,9.589e-05,2]
[347762843,1736095858507,-418.91,9.589e-05,2]
[347762844,1736095858517,-500.0,9.589e-05,2]
[347762845,1736095858526,-500.0,9.589e-05,2]
[347762846,1736095858536,-500.0,9.589e-05,2]
[347762847,1736095858546,-1398.91,9.589e-05,2]
[347762848,1736095858556,-816.85,9.589e-05,2]
[347762849,1736095858566,-500.0,9.589e-05,2]
[347762850,1736095858576,-1869.6,9.589e-05,2]
[347762851,1736095858585,-500.0,9.589e-05,2]
[347762852,1736095858595,-1890.04,9.589e-05,2]
[347762853,1736095858605,-500.0,9.589e-05,2]
[347762854,1736095858615,-1724.92,9.589e-05,2]
[347762855,1736095858625,-500.0,9.589e-05,2]
[347762856,1736095858635,-500.0,9.589e-05,2]
[347762857,1736095858646,-958.63,9.589e-05,2]
[347762858,1736095858656,-455.91,9.589e-05,2]
[347762859,1736095858666,-2593.99,9.589e-05,2]
[347762860,1736095858675,-500.0,9.589e-05,2]
[347762861,1736095858685,-500.0,9.589e-05,2]
[347762862,1736095858695,-3988.32,9.589e-05,2]
[347762863,1736095858705,-713.17,9.589e-05,2]
[347762864,1736095858715,-555.29,9.589e-05,2]
[347762865,1736095858726,-500.0,9.589e-05,2]
[347762866,1736095858736,-589.98,9.589e-05,2]
[347762867,1736095858745,-2839.12,9.589e-05,2]
[347762868,1736095858755,-4987.87,9.589e-05,2]
[347762869,1736095858764,-1013.43,9.589e-05,2]
[347762870,1736095858777,-707.78,9.589e-05,2]
[347762871,1736095858787,-3292.79,9.589e-05,2]
[347762872,1736095858799,-500.0,9.589e-05,2]
[347762873,1736095858814,-500.0,9.589e-05,2]
[347762874,1736095858824,-973.9,9.589e-05,2]
[347762875,1736095858834,-1219.44,9.589e-05,2]
[347762876,1736095858844,-500.0,9.589e-05,2]
[347762877,1736095858855,-2047.69,9.589e-05,2]
[347762878,1736095858864,-950.22,9.589e-05,2]
[347762879,1736095858873,-841.68,9.589e-05,2]
[347762880,1736095858884,-1957.92,9.589e-05,2]
[347762881,1736095858894,-1161.3,9.589e-05,2]
[347762882,1736095858904,-500.0,9.589e-05,2]
[347762883,1736095858914,-8134.45,9.589e-05,2]
[347762884,1736095858924,-200.0,9.598e-05,2]
[347762885,1736095858934,-150.0,9.687e-05,2]
[347762886,1736095858943,-566.0,9.768e-05,2]
[347762887,1736095858952,-493.486,9.768e-05,2]
[347762888,1736095858962,-150.0,9.768e-05,2]
[347762889,1736095858972,-3893.0,9.768e-05,2]
[347762890,1736095858982,-150.0,9.768e-05,2]
[347762891,1736095858991,-1173.0,9.768e-05,2]
[347762892,1736095859002,-9616.0,9.768e-05,2]
[347762893,1736095859012,-200.0,9.768e-05,2]
[347762894,1736095859023,-173.633,9.768e-05,2]
[347762895,1736095859033,-150.449,9.768e-05,2]
[347762896,1736095859043,-1814.0053254,9.771e-05,2]
[347762897,1736095859052,-1333.75831763,9.773e-05,2]
[347762898,1736095859062,-2928.85119473,9.773e-05,2]
[347762899,1736095859072,-56937.01512028,9.774e-05,2]
[347762900,1736095859081,-30722.75134809,9.777e-05,2]
[347762901,1736095859091,-200.0,9.777e-05,2]
[347762902,1736095859101,-30722.75134809,9.777e-05,2]
[347762903,1736095859110,-6469.90055609,9.777e-05,2]
[347762904,1736095859121,-2928.85119473,9.778e-05,2]
[347762905,1736095859130,-208.83299158,9.778e-05,2]
[347762906,1736095859141,-1333.75831763,9.779e-05,2]
[347762907,1736095859150,-1333.75831763,9.779e-05,2]
[347762908,1736095859160,-30722.75134809,9.779e-05,2]
[347762909,1736095859170,-1814.0053254,9.78e-05,2]
[347762910,1736095859180,-6469.90055609,9.78e-05,2]
[347762911,1736095859190,-2928.85119473,9.781e-05,2]
[347762912,1736095859199,-208.83299158,9.782e-05,2]
[347762913,1736095859209,-208.83299158,9.784e-05,2]
[347762914,1736095859219,-56937.01512028,9.784e-05,2]
[347762915,1736095859228,-6469.90055609,9.786e-05,2]
[347762916,1736095859238,-2928.85119473,9.786e-05,2]
[347762917,1736095859248,-1333.75831763,9.786e-05,2]
[347762918,1736095859258,-200.0,9.787e-05,2]
[347762919,1736095859268,-6469.90055609,9.787e-05,2]
[347762920,1736095859278,-56937.01512028,9.787e-05,2]
[347762921,1736095859288,-6469.90055609,9.787e-05,2]
[347762922,1736095859298,-1814.0053254,9.787e-05,2]
[347762923,1736095859307,-1814.0053254,9.787e-05,2]
[347762924,1736095859317,-2928.85119473,9.787e-05,2]
[347762925,1736095859327,-56937.01512028,9.788e-05,2]
[347762926,1736095859336,-30722.75134809,9.789e-05,2]
[347762927,1736095859346,-2928.85119473,9.791e-05,2]
[347762928,1736095859355,-208.83299158,9.792e-05,2]
[347762929,1736095859365,-208.83299158,9.792e-05,2]
[347762930,1736095859375,-1814.0053254,9.794e-05,2]
[347762931,1736095859385,-30722.75134809,9.794e-05,2]
[347762932,1736095859395,-1333.75831763,9.795e-05,2]
[347762933,1736095859405,-1333.75831763,9.796e-05,2]
[347762934,1736095859415,-56937.01512028,9.796e-05,2]
[347762935,1736095859423,-6469.90055609,9.797e-05,2]
[347762936,1736095859433,-1814.0053254,9.798e-05,2]
[347762937,1736095859443,-56937.01512028,9.799e-05,2]
[347762938,1736095859453,-208.83299158,9.799e-05,2]
[347762939,1736095859463,-30722.75134809,9.799e-05,2]
[347762940,1736095859472,-500.0,9.859e-05,2]
[347762941,1736095859482,-1856.37,9.859e-05,2]
[347762942,1736095859491,-500.0,9.859e-05,2]
[347762943,1736095859500,-1176.54,9.859e-05,2]
[347762944,1736095859510,-530.44,9.859e-05,2]
[347762945,1736095859519,-2814.45,9.859e-05,2]
[347762946,1736095859529,-500.0,9.859e-05,2]
[347762947,1736095859540,-769.38,9.859e-05,2]
[347762948,1736095859550,-500.0,9.859e-05,2]
[347762949,1736095859559,-675.21,9.859e-05,2]
[347762950,1736095859569,-1561.87,9.859e-05,2]
[347762951,1736095859579,-500.0,9.859e-05,2]
[347762952,1736095859589,-1751.39,9.859e-05,2]
[347762953,1736095859598,-576.37,9.859e-05,2]
[347762954,1736095859608,-711.82,9.86e-05,2]
[347762955,1736095859618,-777.32,9.86e-05,2]
[347762956,1736095859628,-584.27,9.86e-05,2]
[347762957,1736095859638,-1362.64,9.86e-05,2]
[347762958,1736095859647,-933.23,9.86e-05,2]
[347762959,1736095859657,-798.0,9.86e-05,2]
[347762960,1736095859667,-500.0,9.86e-05,2]
[347762961,1736095859676,-500.0,9.86e-05,2]
[347762962,1736095859686,-1406.53,9.86e-05,2]
[347762963,1736095859696,-277.01,9.86e-05,2]
[347762964,1736095859705,-500.0,9.86e-05,2]
[347762965,1736095859715,-560.45,9.86e-05,2]
[347762966,1736095859725,-2482.55,9.86e-05,2]
[347762967,1736095859735,-500.0,9.86e-05,2]
[347762968,1736095859745,-2577.14,9.86e-05,2]
[347762969,1736095859754,-992.6,9.86e-05,2]
[347762970,1736095859765,-500.0,9.86e-05,2]
[347762971,1736095859774,-1643.78,9.86e-05,2]
[347762972,1736095859783,-500.0,9.86e-05,2]
[347762973,1736095859794,-4470.01,9.86e-05,2]
[347762974,1736095859803,-1552.7,9.86e-05,2]
[347762975,1736095859817,-500.0,9.86e-05,2]
[347762976,1736095859827,-645.32,9.86e-05,2]
[347762977,1736095859837,-500.0,9.86e-05,2]
[347762978,1736095859846,-800.4,9.86e-05,2]
[347762979,1736095859855,-1519.25,9.86e-05,2]
[347762980,1736095859864,-501.13,9.86e-05,2]
[347762981,1736095859874,-500.0,9.86e-05,2]
[347762982,1736095859884,-1316.83,9.86e-05,2]
[347762983,1736095859895,-500.0,9.86e-05,2]
[347762984,1736095859905,-1065.02017,9.86e-05,2]
[347762985,1736095859915,-500.0,9.86e-05,2]
[347762986,1736095859926,-500.0,9.86e-05,2]
[347762987,1736095859936,-2870.07,9.86e-05,2]
[347762988,1736095859946,-2582.52,9.86e-05,2]
[347762989,1736095859956,-500.0,9.86e-05,2]
[347762990,1736095859966,-885.235852,9.86e-05,2]
[347762991,1736095859977,-1296.0,9.86e-05,2]
[347762992,1736095859986,-500.0,9.86e-05,2]
[347762993,1736095859996,-1263.86,9.86e-05,2]
[347762994,1736095860007,-559.66,9.86e-05,2]
[347762995,1736095860018,-1451.88,9.86e-05,2]
[347762996,1736095860028,-500.0,9.86e-05,2]
[347762997,1736095860038,-500.0,9.86e-05,2]
[347762998,1736095860048,-662.17,9.86e-05,2]
[347762999,1736095860058,-647.778809,9.86e-05,2]
[347763000,1736095860069,-500.0,9.86e-05,2]
[347763001,1736095860078,-1117.81,9.86e-05,2]
[347763002,1736095860089,-564.52,9.86e-05,2]
[347763003,1736095860099,-500.0,9.86e-05,2]
[347763004,1736095860109,-500.0,9.86e-05,2]
[347763005,1736095860119,-500.0,9.86e-05,2]
[347763006,1736095860130,-500.0,9.86e-05,2]
[347763007,1736095860139,-883.45,9.86e-05,2]
[347763008,1736095860149,-277.70178716,9.86e-05,2]
[347763009,1736095860159,-500.0,9.86e-05,2]
[347763010,1736095860169,-500.0,9.86e-05,2]
[347763011,1736095860179,-500.0,9.86e-05,2]
[347763012,1736095860189,-2939.35,9.86e-05,2]
[347763013,1736095860200,-951.44,9.86e-05,2]
[347763014,1736095860210,-500.0,9.86e-05,2]
[347763015,1736095860221,-500.0,9.86e-05,2]
[347763016,1736095860232,-500.0,9.86e-05,2]
[347763017,1736095860242,-3218.91,9.861e-05,2]
[347763018,1736095860253,-1847.93,9.861e-05,2]
[347763019,1736095860263,-3406.35,9.861e-05,2]
[347763020,1736095860274,-548.05,9.861e-05,2]
[347763021,1736095860285,-3997.2,9.861e-05,2]
[347763022,1736095860297,-432.77,9.861e-05,2]
[347763023,1736095860308,-697.66,9.861e-05,2]
[347763024,1736095860318,-500.0,9.862e-05,2]
[347763025,1736095860327,-500.0,9.862e-05,2]
[347763026,1736095860338,-500.0,9.862e-05,2]
[347763027,1736095860347,-542.45,9.862e-05,2]
[347763028,1736095860357,-500.0,9.862e-05,2]
[347763029,1736095860368,-500.0,9.862e-05,2]
[347763030,1736095860377,-509.74,9.862e-05,2]
[347763031,1736095860388,-500.0,9.862e-05,2]
[347763032,1736095860398,-500.0,9.862e-05,2]
[347763033,1736095860408,-500.0,9.862e-05,2]
[347763034,1736095860418,-591.3,9.862e-05,2]
[347763035,1736095860428,-500.0,9.862e-05,2]
[347763036,1736095860438,-233.82,9.862e-05,2]
[347763037,1736095860447,-500.0,9.862e-05,2]